Cogmind - Beta 10.2 @@@ ROGUE MODE // 2021.08.15 @ 00:17:27 Player: Luigi Panache Result: Self-destructed Performance ------------- Evolutions (8) 4000 Regions Visited (29) 5800 Robots Destroyed (113) 565 Value Destroyed (3252) 3252 Prototype IDs (71) 1420 Alien Tech Used (8) 1600 Bonus (9127) 9127 TOTAL SCORE: 25764 Bonus ------- High Alert Combat Kills 24 Follower Combat Kills 1779 Aligned with FarCom 300 Met Data Miner 300 Met Zhirov 300 Built Enhanced Grunts 300 A7 Reached Mainframe 300 Found Hidden Lab 3000 Used Core Reset Matrix 3000 Pursued by Intercept 500 Friendly Fire -676 Cogmind --------- Core Integrity 621/1450 Matter 158/300 Energy 100/100 System Corruption 3% Temperature Cool (0) Movement Core (50) Location -2/Section 7 Parts ------- > --- POWER (2) -------- (None) > --- PROPULSION (6) --- Advanced Heavy Treads > --- UTILITY (12) ----- Experimental Signal Interpreter Improved Terrain Scan Processor Advanced Hacking Suite Deep Network Scanner Advanced System Shield > --- WEAPON (4) ------- (None) > --- INVENTORY (4) ---- High-powered Transdimensional Reconstructor Subatomic Replicator Potential Cannon Peak State ------------ > --- POWER ------------ Quantum Reactor > --- PROPULSION ------- Experimental Cesium-ion Thruster Field Propulsion Array Q-thruster Impulse Thruster Array > --- UTILITY ---------- Medium Storage Unit Advanced Energy Well Enhanced Optical Array Experimental Signal Interpreter Improved Terrain Scan Processor Improved Cloaking Device Experimental Powered Armor Advanced Hacking Suite Deep Network Scanner System Shield Advanced System Shield > --- WEAPON ----------- Potential Cannon Warp Cannon Enhanced Force Lance > --- INVENTORY -------- Experimental Cesium-ion Thruster Phase Armor Subatomic Replicator Stasis Generator [Rating: 162] Favorites ----------- Power Micro Fission Core Engine Ion Engine Power Core Micro Fission Core Reactor Quantum Reactor Propulsion Improved Flight Unit Treads Light Treads Flight Unit Improved Flight Unit Utility Enhanced Optical Array Device Advanced Weight Redist. System Storage High-capacity Storage Unit Processor Enhanced Optical Array Hackware Advanced Hacking Suite Protection Centrium Medium Armor Plating Artifact Stasis Generator Weapon Phasing Sabre Energy Gun EM Pulse Gun Energy Cannon Advanced Plasma Cannon Ballistic Gun Light Assault Rifle Ballistic Cannon Enhanced Gauss Cannon Launcher Grenade Launcher Slashing Weapon Phasing Sabre Piercing Weapon Enhanced Force Lance Build | -11 -10 -10 -9 -9 -9 -8 -8 -7 -6 -6 -6 -6 -5 -5 -5 -5 -5 -5 -4 -4 -4 -4 -3 -3 -3 -3 -2 -2 -2 ------- Run | Scr Mat Min Mat Min Exi Min Mat Fac Fac Low Low Dat Pro Fac Ext Cet Arc Hub Fac Upp Upp Zhi Pro Res Arm Lab Res Qua Sec Slots Evolved 16 | . . . 2 . . . 2 2 2 . . . . 2 . . . . 2 . . . . 2 . . 2 . . Power 1 | . . . . . . . . . . . . . . 1 . . . . . . . . . . . . . . . Propulsion 3 | . . . 1 . . . . . . . . . . 1 . . . . . . . . . . . . 1 . . Utility 10 | . . . 1 . . . 2 2 2 . . . . . . . . . 2 . . . . . . . 1 . . Weapon 2 | . . . . . . . . . . . . . . . . . . . . . . . . 2 . . . . . Parts Attached 226 | 6 13 1 27 2 1 4 9 4 3 2 1 . 4 21 19 4 1 5 17 3 . 6 1 21 7 6 10 26 2 Power 18 | 1 1 . 3 . . . . . . . 1 . . 2 5 . . . . . . . . . . . 2 3 . Engine 8 | 1 1 . 3 . . . . . . . 1 . . 1 1 . . . . . . . . . . . . . . Core 5 | . . . . . . . . . . . . . . 1 4 . . . . . . . . . . . . . . Reactor 5 | . . . . . . . . . . . . . . . . . . . . . . . . . . . 2 3 . Propulsion 47 | 2 3 . 9 . . 1 3 . . 2 . . 1 3 1 . . . 2 . . . . 6 1 . . 12 1 Treads 16 | 2 3 . 8 . . 1 . . . . . . . . . . . . . . . . . . . . . 1 1 Leg . | . . . . . . . . . . . . . . . . . . . . . . . . . . . . . . Wheel . | . . . . . . . . . . . . . . . . . . . . . . . . . . . . . . Hover . | . . . . . . . . . . . . . . . . . . . . . . . . . . . . . . Flight 31 | . . . 1 . . . 3 . . 2 . . 1 3 1 . . . 2 . . . . 6 1 . . 11 . Utility 95 | 1 3 . 7 2 . . 6 4 3 . . . 3 12 9 4 1 3 12 2 . 4 . 6 2 2 3 5 1 Device 41 | . 2 . 3 2 . . 1 1 3 . . . 3 10 3 1 . 1 3 . . . . 2 2 . 3 . 1 Storage 15 | 1 1 . 1 . . . 1 . . . . . . 1 1 . . 1 1 1 . 3 . 2 . . . 1 . Processor 8 | . . . . . . . 3 1 . . . . . 1 . . . . 3 . . . . . . . . . . Hackware 11 | . . . . . . . . 2 . . . . . . 2 . 1 . 4 . . . . . . 1 . 1 . Protection 17 | . . . 3 . . . 1 . . . . . . . 3 3 . 1 1 1 . 1 . 2 . 1 . . . Artifact 3 | . . . . . . . . . . . . . . . . . . . . . . . . . . . . 3 . Weapon 66 | 2 6 1 8 . 1 3 . . . . . . . 4 4 . . 2 3 1 . 2 1 9 4 4 5 6 . Energy Gun 14 | 1 5 . 6 . . 2 . . . . . . . . . . . . . . . . . . . . . . . Energy Cannon 16 | . . . . . . . . . . . . . . 1 . . . 1 1 . . 1 . 4 . 2 4 2 . Ballistic Gun 2 | 1 . . 1 . . . . . . . . . . . . . . . . . . . . . . . . . . Ballistic Cannon 2 | . . . . . . . . . . . . . . 2 . . . . . . . . . . . . . . . Launcher 10 | . 1 1 1 . 1 1 . . . . . . . . 1 . . . 1 1 . . 1 . . . . 1 . Special Weapon . | . . . . . . . . . . . . . . . . . . . . . . . . . . . . . . Impact Weapon . | . . . . . . . . . . . . . . . . . . . . . . . . . . . . . . Slashing Weapon 8 | . . . . . . . . . . . . . . . 3 . . 1 1 . . 1 . 2 . . . . . Piercing Weapon 14 | . . . . . . . . . . . . . . 1 . . . . . . . . . 3 4 2 1 3 . Special Melee Weapon . | . . . . . . . . . . . . . . . . . . . . . . . . . . . . . . Unidentified Prototypes 28 | . . . 3 1 . . . . . . . . . 5 . 1 . . 1 . . 4 . 1 3 7 1 1 . Parts Lost 50 | . 1 . 6 . . 7 . 1 1 . 2 . 3 1 2 1 . 1 3 . . . . 7 . 1 1 12 . Power 3 | . . . . . . . . . . . 1 . . . . . . . . . . . . 1 . . . 1 . Propulsion 17 | . . . . . . 3 . . . . . . 2 . 1 . . . 2 . . . . 2 . 1 1 5 . Utility 20 | . . . 2 . . 1 . 1 1 . 1 . 1 1 1 1 . 1 1 . . . . 3 . . . 5 . Weapon 10 | . 1 . 4 . . 3 . . . . . . . . . . . . . . . . . 1 . . . 1 . Highest Loss Streak 8 | . 1 . 2 . . 6 . 1 1 . 1 . 3 1 2 1 . 1 2 . . . . 6 . 1 1 8 . Average Slot Usage (%) 86 | . 92 100 98 100 98 69 72 83 85 80 71 73 64 80 90 100 100 100 97 100 94 95 94 83 61 60 56 62 24 Engine 6 | . 13 14 11 11 11 11 9 7 6 6 . 6 6 5 2 . . . . . . . . . . . . . . Core 2 | . . . . . . . . . . . . . . . 7 11 11 11 10 10 10 10 10 7 . . . . . Treads 11 | . 27 28 32 33 33 24 . . . . . . . . . . . . . . . . . . . . . . 3 Flight 11 | . . . . . . . 22 23 20 20 20 20 13 17 18 23 23 23 21 21 21 21 21 17 14 14 9 11 . Device 12 | . 11 14 11 11 11 6 7 7 25 20 17 13 11 22 17 11 11 14 10 14 10 10 10 6 . . 4 3 . Storage 10 | . 14 14 15 22 22 22 12 7 6 6 6 6 6 5 10 5 5 7 8 5 10 9 10 8 9 7 4 4 . Processor 7 | . . . . . . . 15 15 13 13 13 13 13 11 11 11 11 11 12 15 15 15 15 14 14 13 12 11 8 Hackware 9 | . . . . . . . . 15 13 13 13 13 13 10 5 11 11 11 19 21 21 21 21 19 19 20 20 16 12 Protection 1 | . . . 5 . . . 6 6 . . . . . . 4 11 11 5 3 . . . . 1 4 4 4 3 . Energy Gun 6 | . 21 14 19 22 19 3 . . . . . . . . . . . . . . . . . . . . . . . Launcher 1 | . 1 14 . . 1 2 . . . . . . . . . . . . 1 . 5 2 5 2 . . . . . Slashing Weapon 1 | . . . . . . . . . . . . . . . 6 11 11 10 5 5 . 2 . . . . . . . Naked Turns . | . . . . . . . . . . . . . . . . . . . . . . . . . . . . . . Heaviest Build 62 | 12 41 43 62 62 62 62 56 16 16 15 15 9 11 26 38 40 40 40 45 36 32 35 35 39 22 14 26 62 . Greatest Support 69 | 40 40 40 60 60 60 60 20 18 18 18 18 12 21 30 46 40 40 46 46 41 41 41 41 42 22 22 14 69 3 Greatest Overweight (x) 4 | . 1 1 3 1 1 2 2 . . . 2 . . 2 2 . . . 1 . . . . 1 1 . 4 2 . Average Overweight (x) . | . . 1 . 1 . . . . . . . . . . . . . . . . . . . . . . . . . Largest Inventory Capacity 18 | 6 12 12 18 18 18 18 18 6 6 6 6 6 6 6 8 8 8 8 8 8 8 8 8 8 4 4 4 8 4 Average Capacity 9 | 5 9 12 14 18 18 18 9 6 6 6 6 6 6 6 7 8 8 8 8 8 8 8 8 6 4 4 4 7 4 Most Carried 18 | 6 10 12 18 18 18 18 15 6 6 6 6 6 6 6 8 8 8 8 8 8 8 8 8 8 4 4 4 8 4 Average Carried 8 | 3 7 11 13 17 17 16 7 5 5 5 6 6 5 5 7 7 8 7 7 7 8 7 7 6 3 3 3 6 3 Final Capacity 18 | 6 12 12 18 18 18 18 6 6 6 6 6 6 6 6 8 8 8 8 8 8 8 8 8 4 4 4 4 4 4 Final Carried 18 | 5 10 12 18 18 18 15 6 6 6 6 6 6 5 6 8 8 8 8 8 8 8 8 8 4 3 4 4 4 4 Class Distribution -------------------- 23% | Mutant 20% | Hacker-Sprinter 20% | Hacker-Scout 14% | Scavenger-Mutant 4% | Commander-Scout 4% | Commander-Sprinter 3% | Hacker-Mutant Dominant Class ---------------- Mutant | -10/Materials Mutant | -10/Mines Scavenger-Mutant | -9/Materials Scavenger-Mutant | -9/Mines Scavenger-Mutant | -9/Exiles Mutant | -8/Mines Scout | -8/Materials Hacker-Scout | -7/Factory Hacker-Scout | -6/Factory Hacker-Sprinter | -6/Lower Caves Hacker-Mutant | -6/Lower Caves Hacker-Sprinter | -6/Data Miner Hacker-Sprinter | -5/Proximity Caves Hacker-Scout | -5/Factory Commander-Scout | -5/Extension Commander-Sprinter | -5/Cetus Commander-Sprinter | -5/Archives Commander-Scout | -5/Hub_04(d) Hacker-Sprinter | -4/Factory Hacker-Scout | -4/Upper Caves Hacker-Scout | -4/Upper Caves Hacker-Scout | -4/Zhirov Hacker-Scout | -3/Proximity Caves Hacker-Scout | -3/Research Hacker-Sprinter | -3/Armory Hacker-Sprinter | -3/Lab Hacker-Sprinter | -2/Research Wizard-Mutant | -2/Quarantine Hacker-Mutant | -2/Section 7 Resources | -11 -10 -10 -9 -9 -9 -8 -8 -7 -6 -6 -6 -6 -5 -5 -5 -5 -5 -5 -4 -4 -4 -4 -3 -3 -3 -3 -2 -2 -2 ----------- Run | Scr Mat Min Mat Min Exi Min Mat Fac Fac Low Low Dat Pro Fac Ext Cet Arc Hub Fac Upp Upp Zhi Pro Res Arm Lab Res Qua Sec Matter Collected 2997 | 266 176 180 295 20 . 5 140 40 . 36 22 . 23 69 490 50 10 50 87 126 24 395 33 204 . . . 256 . Remotely . | . . . . . . . . . . . . . . . . . . . . . . . . . . . . . . Salvage Created 4407 | 131 764 . 997 54 . 64 . . . . . . . 22 703 . 213 . 371 . 40 443 57 277 . . . 271 . Parts 243 | 7 60 . 62 5 . 5 . . . . . . . 1 32 . 13 . 17 . 4 4 8 13 . . . 12 . Haulers Intercepted 7 | . 2 . 3 . . . . . . . . . . . 2 . . . . . . . . . . . . . . Recyclers Shooed 8 | . . . 6 . . 1 . . . . . . . . 1 . . . . . . . . . . . . . . Parts Field Recycled . | . . . . . . . . . . . . . . . . . . . . . . . . . . . . . . Retrieved Matter . | . . . . . . . . . . . . . . . . . . . . . . . . . . . . . . Parts Self-Destructed 10 | . . . . . . . . . . . . . . . . . . . . . 4 3 3 . . . . . . Prevented . | . . . . . . . . . . . . . . . . . . . . . . . . . . . . . . Kills | -11 -10 -10 -9 -9 -9 -8 -8 -7 -6 -6 -6 -6 -5 -5 -5 -5 -5 -5 -4 -4 -4 -4 -3 -3 -3 -3 -2 -2 -2 ------- Run | Scr Mat Min Mat Min Exi Min Mat Fac Fac Low Low Dat Pro Fac Ext Cet Arc Hub Fac Upp Upp Zhi Pro Res Arm Lab Res Qua Sec Combat Hostiles Destroyed 68 | . 20 . 18 4 . 1 . . . . . . . . 3 . . . 8 . 3 . 5 2 . . . 4 . Melee 5 | . . . . . . . . . . . . . . . 2 . . . 3 . . . . . . . . . . Guns 31 | . 14 . 12 4 . 1 . . . . . . . . . . . . . . . . . . . . . . . Cannons 4 | . . . . . . . . . . . . . . . . . . . . . . . . . . . . 4 . AOE 27 | . 6 . 5 . . . . . . . . . . . 1 . . . 5 . 3 . 5 2 . . . . . Classes Destroyed 14 | 2 6 . 2 . . 1 . . . . . . . . 2 . . . . . . . . . . . . 1 . Worker 5 | . 2 . . . . 1 . . . . . . . . . . . . . . . . . 2 . . . . . Builder 6 | . . . 1 . . . . . . . . . . . 5 . . . . . . . . . . . . . . Tunneler 4 | 2 . . . . . 1 . . . . . . . . 1 . . . . . . . . . . . . . . Hauler 7 | . 2 . 3 . . . . . . . . . . . 2 . . . . . . . . . . . . . . Recycler 7 | 1 . . 3 . . . . . . . . . . . 2 . . . . . . . . 1 . . . . . Operator 9 | . 1 . 1 . . . . . . . . . . 1 . . 6 . . . . . . . . . . . . Watcher 6 | . 2 . 1 . . . . . . . . . . . 1 . . . . . . . . 2 . . . . . Swarmer 32 | . 9 . 6 4 . . . . . . . . . . . . . . 5 . 3 . 5 . . . . . . Grunt 20 | . 11 . 6 . . . . . . . . . . . . . . . 3 . . . . . . . . . . Sentry 7 | . . . 6 . . . . . . . . . . . 1 . . . . . . . . . . . . . . Hunter 3 | . . . . . . 1 . . . . . . . . . . . . . . . . . 2 . . . . . Programmer 1 | . . . . . . . . . . . . . . . . . . . . . . . . . . . . 1 . Behemoth 1 | . . . . . . . . . . . . . . . 1 . . . . . . . . . . . . . . Enhanced Grunt 1 | . . . . . . . . . . . . . . . . . . . 1 . . . . . . . . . . Tracker 2 | . . . . . . . . . . . . . . . . . . . . . . . . . . . . 2 . Combat Programmer 1 | . . . . . . . . . . . . . . . . . . . . . . . . . . . . 1 . Savage 1 | . . . . . . . . . . . . . . . 1 . . . . . . . . . . . . . . Best Kill Streak 7 | 3 7 . 5 2 . 2 . . . . . . . 1 7 . 5 . 5 . 3 . 5 4 . . . 3 . Combat Bots Only 6 | . 6 . 5 2 . 1 . . . . . . . . 1 . . . 5 . 3 . 5 2 . . . 3 . Max Kills in Single Turn 5 | 1 3 . 1 1 . 1 . . . . . . . 1 2 . 1 . 5 . 3 . 2 2 . . . 1 . Gunslinging . | . . . . . . . . . . . . . . . . . . . . . . . . . . . . . . Exploded 5 | . 3 . 1 . . . . . . . . . . . 1 . . . 5 . 3 . 2 1 . . . . . Melee 1 | . . . . . . . . . . . . . . . 1 . . . 1 . . . . . . . . . . Uniques/NPCs Destroyed . | . . . . . . . . . . . . . . . . . . . . . . . . . . . . . . Combat | -11 -10 -10 -9 -9 -9 -8 -8 -7 -6 -6 -6 -6 -5 -5 -5 -5 -5 -5 -4 -4 -4 -4 -3 -3 -3 -3 -2 -2 -2 -------- Run | Scr Mat Min Mat Min Exi Min Mat Fac Fac Low Low Dat Pro Fac Ext Cet Arc Hub Fac Upp Upp Zhi Pro Res Arm Lab Res Qua Sec Damage Taken 8629 | . 462 . 1043 33 . 806 16 110 42 . 153 . 247 166 151 47 43 114 828 . 16 . 24 1064 64 181 223 2420 376 Core 1856 | . 61 . 120 20 . 105 . 10 11 . 63 . 112 14 9 . . 69 167 . . . . 272 21 48 30 635 89 Absorbed by Shields 168 | . . . . . . . . . . . . . . . 145 23 . . . . . . . . . . . . . Core Remaining (%) 81 | 100 . 75 . . . 38 100 98 . . . . 78 . . . . 90 . . . . 85 . . 67 . . . Volleys Fired 243 | 7 61 1 77 5 7 19 . . . . . . . 1 10 . . 4 4 . 2 . 3 12 . . 7 23 . Largest 2 | 2 2 1 2 2 1 2 . . . . . . . 1 1 . . 1 1 . 1 . 1 1 . . 1 1 . Hottest 200 | 60 90 30 115 115 50 115 . . . . . . . 57 46 . . 98 98 . 46 . 46 113 . . 100 200 . Shots Fired 380 | 13 107 1 148 10 7 28 . . . . . . . 1 10 . . 4 4 . 2 . 3 12 . . 7 23 . Gun 299 | 13 102 . 145 10 6 23 . . . . . . . . . . . . . . . . . . . . . . . Cannon 46 | . . . . . . . . . . . . . . 1 . . . 4 3 . . . . 8 . . 7 23 . Launcher 35 | . 5 1 3 . 1 5 . . . . . . . . 10 . . . 1 . 2 . 3 4 . . . . . Special . | . . . . . . . . . . . . . . . . . . . . . . . . . . . . . . Kinetic 30 | 6 6 . 17 . . . . . . . . . . 1 . . . . . . . . . . . . . . . Thermal 218 | . 31 . 103 10 6 23 . . . . . . . . . . . 4 3 . . . . 8 . . 7 23 . Explosive 35 | . 5 1 3 . 1 5 . . . . . . . . 10 . . . 1 . 2 . 3 4 . . . . . Electromagnetic 97 | 7 65 . 25 . . . . . . . . . . . . . . . . . . . . . . . . . . Robot Hit Streak 32 | 4 9 . 20 7 . 15 . . . . . . . . 4 . . . 5 . . . 7 10 . . . 32 . Robot Miss Streak 5 | 1 4 . 3 5 . 2 . . . . . . . . . . . . . . . . . . . . . . . Penetration Max . | . . . . . . . . . . . . . . . . . . . . . . . . . . . . . . Secondary Targets 4 | . 2 . 1 1 . . . . . . . . . . . . . . . . . . . . . . . . . Max Gunslinging Chain 1 | . 1 . 1 1 . . . . . . . . . . . . . . . . . . . . . . . . . Shots Hit Robots 330 | 9 73 . 111 7 . 26 . . . . . . . 1 22 1 13 1 25 . . 10 2 7 . . . 22 . Core Hits 211 | 4 36 1 61 6 . 18 . . . . . . . 1 27 1 7 . 13 . 3 4 8 13 . . . 8 . Critical Hits 7 | . . . . . . . . . . . . . . . . . 1 . . . . 1 . 2 . . . 3 . Critical Kills 4 | . . . . . . . . . . . . . . . . . . . . . . . . 2 . . . 2 . Critical Parts Destroyed 3 | . . . . . . . . . . . . . . . . . 1 . . . . 1 . . . . . 1 . Melee Attacks 110 | . . . . . . . . . . . . . . 4 29 1 19 1 26 . . 10 . 7 4 2 1 6 . Impact . | . . . . . . . . . . . . . . . . . . . . . . . . . . . . . . Slashing 84 | . . . . . . . . . . . . . . . 27 1 19 1 26 . . 10 . . . . . . . Piercing 26 | . . . . . . . . . . . . . . 4 2 . . . . . . . . 7 4 2 1 6 . Sneak Attacks 20 | . . . . . . . . . . . . . . . 6 . 7 . 4 . . . . 3 . . . . . Combat Hostiles 4 | . . . . . . . . . . . . . . . 1 . 1 . 2 . . . . . . . . . . Follow-up Attacks 9 | . . . . . . . . . . . . . . . 1 . 3 . 5 . . . . . . . . . . Damage Inflicted 14634 | 108 1290 4 1693 76 . 452 . . 12 . . . . 70 2679 47 1601 58 1741 . 584 1256 598 1282 . . . 1083 . Guns 2623 | 108 879 . 1309 66 . 261 . . . . . . . . . . . . . . . . . . . . . . . Cannons 1083 | . . . . . . . . . . . . . . . . . . . . . . . . . . . . 1083 . Explosions 4548 | . 411 . 367 . . 191 . . . . . . . . 1339 . . . 429 . 584 . 598 629 . . . . . Melee 6332 | . . . . . . . . . . . . . . 70 1340 47 1601 58 1312 . . 1256 . 648 . . . . . Ramming 48 | . . 4 17 10 . . . . 12 . . . . . . . . . . . . . . 5 . . . . . Kinetic 141 | 18 31 . 92 . . . . . . . . . . . . . . . . . . . . . . . . . . Thermal 2703 | . 274 . 1019 66 . 261 . . . . . . . . . . . . . . . . . . . . . 1083 . Explosive 4447 | . 361 . 316 . . 191 . . . . . . . . 1339 . . . 429 . 584 . 598 629 . . . . . Electromagnetic 963 | 90 624 . 249 . . . . . . . . . . . . . . . . . . . . . . . . . . Impact . | . . . . . . . . . . . . . . . . . . . . . . . . . . . . . . Slashing 5554 | . . . . . . . . . . . . . . . 1280 47 1601 58 1312 . . 1256 . . . . . . . Piercing 778 | . . . . . . . . . . . . . . 70 60 . . . . . . . . 648 . . . . . Highest Corruption 16 | . 1 1 . . . . . . . . . . . . . . . . 6 4 . . . 4 4 9 . 16 3 Average Corruption 2 | . 1 1 . . . . . . . . . . . . . . . . 4 2 . . . 4 4 5 . 6 3 Corruption Purged 6 | . . . . . . . . . . . . . . . . . . . 2 4 . . . . . . . . . Effects 46 | . 3 5 . . . . . . . . . . . . . . . . 4 14 . . . 2 5 1 . 5 7 Message Errors 10 | . 1 1 . . . . . . . . . . . . . . . . . 4 . . . . 2 . . 1 1 Matter Fused 14 | . . . . . . . . . . . . . . . . . . . 2 2 . . . . 3 1 . 2 4 Heat Flow Errors 7 | . . . . . . . . . . . . . . . . . . . 1 5 . . . . . . . 1 . Energy Discharges 5 | . . 3 . . . . . . . . . . . . . . . . 1 . . . . 1 . . . . . Data Loss (minor) 8 | . 2 1 . . . . . . . . . . . . . . . . . 3 . . . . . . . . 2 Data Loss (major) 1 | . . . . . . . . . . . . . . . . . . . . . . . . . . . . 1 . Targeting Errors 1 | . . . . . . . . . . . . . . . . . . . . . . . . 1 . . . . . Overload Shots . | . . . . . . . . . . . . . . . . . . . . . . . . . . . . . . Overflow Damage 1534 | . 28 . 28 . . . . . . . . . . . 266 . 420 . 116 . 90 384 . 202 . . . . . Projectiles . | . . . . . . . . . . . . . . . . . . . . . . . . . . . . . . Explosions 234 | . 28 . 28 . . . . . . . . . . . 62 . . . . . 90 . . 26 . . . . . Melee 1300 | . . . . . . . . . . . . . . . 204 . 420 . 116 . . 384 . 176 . . . . . Knockbacks . | . . . . . . . . . . . . . . . . . . . . . . . . . . . . . . Impact . | . . . . . . . . . . . . . . . . . . . . . . . . . . . . . . Kinetic . | . . . . . . . . . . . . . . . . . . . . . . . . . . . . . . Secondary . | . . . . . . . . . . . . . . . . . . . . . . . . . . . . . . Self-Inflicted Damage 212 | . . . 57 . . 148 . . 6 . . . . . . . . . . . . . . 1 . . . . . Shots 7 | . . . 3 . . 4 . . . . . . . . . . . . . . . . . . . . . . . Rammed 15 | . . 1 5 3 . . . . 1 . . . . . . . . . . . . . . 3 . . . . 2 Targets Rammed 15 | . . 1 5 3 . . . . 1 . . . . . . . . . . . . . . 3 . . . . 2 Kicked . | . . . . . . . . . . . . . . . . . . . . . . . . . . . . . . Crushed . | . . . . . . . . . . . . . . . . . . . . . . . . . . . . . . Highest Temperature 262 | 40 262 . 102 27 . 63 . . . . . . 5 . 33 . 3 252 176 256 16 . 24 260 . . . 225 . Average Temperature 55 | 17 88 . 26 13 . 32 . . . . . . 5 . 16 . 3 88 76 107 10 . 11 71 . . . 38 . Received Heat Transfer 888 | . 168 . 294 . . . . 12 18 . . . 93 . 36 . . 27 84 . . . . 48 . . 18 54 36 Effects 1 | . 1 . . . . . . . . . . . . . . . . . . . . . . . . . . . . Interference 1 | . 1 . . . . . . . . . . . . . . . . . . . . . . . . . . . . Siege Activations . | . . . . . . . . . . . . . . . . . . . . . . . . . . . . . . Robots Corrupted . | . . . . . . . . . . . . . . . . . . . . . . . . . . . . . . Combat Hostiles . | . . . . . . . . . . . . . . . . . . . . . . . . . . . . . . Parts Fried 1 | . 1 . . . . . . . . . . . . . . . . . . . . . . . . . . . . Impact Corruptions . | . . . . . . . . . . . . . . . . . . . . . . . . . . . . . . Robots Melted 1 | . . . 1 . . . . . . . . . . . . . . . . . . . . . . . . . . Combat Hostiles 1 | . . . 1 . . . . . . . . . . . . . . . . . . . . . . . . . . Parts Melted 7 | . 1 . 3 . . 1 . . . . . . . . . . . . . . . . . . . . . 2 . Heat Transferred 4133 | . 659 . 2281 168 . 211 . . . . . . . . . . . . . . . . . . . . . 814 . Parts Sabotaged . | . . . . . . . . . . . . . . . . . . . . . . . . . . . . . . Parts Stolen . | . . . . . . . . . . . . . . . . . . . . . . . . . . . . . . Parts Stripped . | . . . . . . . . . . . . . . . . . . . . . . . . . . . . . . Power Chain Reactions 3 | . 2 . 1 . . . . . . . . . . . . . . . . . . . . . . . . . . Missiles Intercepted . | . . . . . . . . . . . . . . . . . . . . . . . . . . . . . . Alert | -11 -10 -10 -9 -9 -9 -8 -8 -7 -6 -6 -6 -6 -5 -5 -5 -5 -5 -5 -4 -4 -4 -4 -3 -3 -3 -3 -2 -2 -2 ------- Run | Scr Mat Min Mat Min Exi Min Mat Fac Fac Low Low Dat Pro Fac Ext Cet Arc Hub Fac Upp Upp Zhi Pro Res Arm Lab Res Qua Sec Peak Influence 612 | 15 358 62 401 253 . 37 99 160 165 . . . . 131 612 247 214 415 444 . . . . 310 144 . 128 355 67 Initial 203 | . 9 62 . 133 . . 10 44 73 . . . . 103 29 140 82 74 203 . . . . 74 125 . . 72 67 Average 160 | 6 114 22 264 216 . 15 42 61 129 . . . . 105 261 220 168 221 339 . . . . 148 139 . 57 261 13 Maximum Alert Level 2 | . 1 . 2 1 . . . . . . . . . . 2 1 1 2 2 . . . . 1 . . . 1 . Low Security (%) 63 | 100 85 100 19 25 . 100 100 100 100 . . . . 100 36 12 59 64 . . . . . 89 100 . 100 34 100 Level 1 31 | . 14 . 78 74 . . . . . . . . . . 48 87 40 25 56 . . . . 10 . . . 65 . Level 2 4 | . . . 1 . . . . . . . . . . . 14 . . 9 43 . . . . . . . . . . Level 3 . | . . . . . . . . . . . . . . . . . . . . . . . . . . . . . . Level 4 . | . . . . . . . . . . . . . . . . . . . . . . . . . . . . . . Level 5 . | . . . . . . . . . . . . . . . . . . . . . . . . . . . . . . High Security . | . . . . . . . . . . . . . . . . . . . . . . . . . . . . . . Max Security . | . . . . . . . . . . . . . . . . . . . . . . . . . . . . . . Squads Dispatched 30 | . 4 . 3 . . . 2 . 3 . . . . 2 1 . . 2 2 . . . . 2 1 . . 7 1 Investigation 10 | . 3 . 2 . . . . . 1 . . . . 1 . . . . 1 . . . . 1 . . . 1 . Extermination 5 | . . . . . . . . . 1 . . . . 1 . . . . 1 . . . . . . . . 2 . Reinforcement 12 | . 1 . 1 . . . 2 . 1 . . . . . 1 . . 2 . . . . . 1 1 . . 1 1 Assault . | . . . . . . . . . . . . . . . . . . . . . . . . . . . . . . Garrison . | . . . . . . . . . . . . . . . . . . . . . . . . . . . . . . Intercept 3 | . . . . . . . . . . . . . . . . . . . . . . . . . . . . 3 . Construction Impeded 2 | . . . . . . . . . . . . . . . 1 . . . . . . . . 1 . . . . . Haulers Reinforced . | . . . . . . . . . . . . . . . . . . . . . . . . . . . . . . Stealth | -11 -10 -10 -9 -9 -9 -8 -8 -7 -6 -6 -6 -6 -5 -5 -5 -5 -5 -5 -4 -4 -4 -4 -3 -3 -3 -3 -2 -2 -2 --------- Run | Scr Mat Min Mat Min Exi Min Mat Fac Fac Low Low Dat Pro Fac Ext Cet Arc Hub Fac Upp Upp Zhi Pro Res Arm Lab Res Qua Sec Distress Signals 14 | . 2 . 2 . . . . . . . . . . 1 2 1 . . 1 . . . . 1 . . 1 2 1 Communications Jammed . | . . . . . . . . . . . . . . . . . . . . . . . . . . . . . . Distress Signals . | . . . . . . . . . . . . . . . . . . . . . . . . . . . . . . Times Spotted 258 | . 29 3 31 5 3 4 5 3 8 3 8 . 10 8 22 5 10 8 18 . 3 . 5 15 6 1 8 25 12 Peak Tracking Total 10 | . 4 4 5 4 9 4 4 4 2 3 4 . 9 7 5 5 2 3 7 . 5 . 5 8 5 1 8 8 10 Tactical Retreats 24 | . . . 2 1 . 1 . 1 . 2 3 . 2 1 . . . . 3 . 1 . . 2 . . 1 2 2 Traps | -11 -10 -10 -9 -9 -9 -8 -8 -7 -6 -6 -6 -6 -5 -5 -5 -5 -5 -5 -4 -4 -4 -4 -3 -3 -3 -3 -2 -2 -2 ------- Run | Scr Mat Min Mat Min Exi Min Mat Fac Fac Low Low Dat Pro Fac Ext Cet Arc Hub Fac Upp Upp Zhi Pro Res Arm Lab Res Qua Sec Traps Triggered 10 | . 3 . . . . . . . . . . . . 2 . . . . . . . . . 3 . . . 2 . Indirectly . | . . . . . . . . . . . . . . . . . . . . . . . . . . . . . . Trap Hack Attempts . | . . . . . . . . . . . . . . . . . . . . . . . . . . . . . . Triggered . | . . . . . . . . . . . . . . . . . . . . . . . . . . . . . . Disarmed . | . . . . . . . . . . . . . . . . . . . . . . . . . . . . . . Reprogrammed . | . . . . . . . . . . . . . . . . . . . . . . . . . . . . . . Reused . | . . . . . . . . . . . . . . . . . . . . . . . . . . . . . . Traps Extracted . | . . . . . . . . . . . . . . . . . . . . . . . . . . . . . . Installed . | . . . . . . . . . . . . . . . . . . . . . . . . . . . . . . Triggered . | . . . . . . . . . . . . . . . . . . . . . . . . . . . . . . Machines | -11 -10 -10 -9 -9 -9 -8 -8 -7 -6 -6 -6 -6 -5 -5 -5 -5 -5 -5 -4 -4 -4 -4 -3 -3 -3 -3 -2 -2 -2 ---------- Run | Scr Mat Min Mat Min Exi Min Mat Fac Fac Low Low Dat Pro Fac Ext Cet Arc Hub Fac Upp Upp Zhi Pro Res Arm Lab Res Qua Sec Machines Disabled 18 | . 1 . 1 . 1 . . . . . . . . . 2 . 1 . 1 . . . . . 1 1 2 7 . Max in Single Turn 2 | . 1 . 1 . 1 . . . . . . . . . 1 . . . . . . . . . 1 1 1 2 . Garrison Access 4 | . . . . . . . . . . . . . . 1 . . . . . . . . . 2 . . . 1 . Machines Sabotaged . | . . . . . . . . . . . . . . . . . . . . . . . . . . . . . . Garrisons Compromised . | . . . . . . . . . . . . . . . . . . . . . . . . . . . . . . Overloaded Fab Kills . | . . . . . . . . . . . . . . . . . . . . . . . . . . . . . . Fab Network Shutdowns . | . . . . . . . . . . . . . . . . . . . . . . . . . . . . . . Hacking | -11 -10 -10 -9 -9 -9 -8 -8 -7 -6 -6 -6 -6 -5 -5 -5 -5 -5 -5 -4 -4 -4 -4 -3 -3 -3 -3 -2 -2 -2 --------- Run | Scr Mat Min Mat Min Exi Min Mat Fac Fac Low Low Dat Pro Fac Ext Cet Arc Hub Fac Upp Upp Zhi Pro Res Arm Lab Res Qua Sec Machines Accessed 70 | . 9 . 4 . 2 . 2 4 4 . . 3 . 6 5 1 . 5 5 . . 4 1 5 1 . 2 5 2 Terminals 46 | . 6 . 3 . . . 2 4 4 . . . . 4 4 1 . 5 2 . . . 1 2 . . 2 4 2 Fabricators 3 | . . . . . . . . . . . . . . . . . . . 1 . . . . 1 1 . . . . Repair Stations 4 | . 1 . . . . . . . . . . . . 1 . . . . 2 . . . . . . . . . . Recycling Units 4 | . 2 . 1 . . . . . . . . . . . 1 . . . . . . . . . . . . . . Scanalyzers . | . . . . . . . . . . . . . . . . . . . . . . . . . . . . . . Garrison Access 4 | . . . . . . . . . . . . . . 1 . . . . . . . . . 2 . . . 1 . Total Hacks 249 | . 28 . 11 . 2 . 2 8 17 . . 25 . 15 25 1 . 18 23 . . 17 1 23 5 . 5 16 7 Successful 163 | . 18 . 6 . 2 . 2 7 12 . . 25 . 5 10 1 . 7 14 . . 17 1 14 5 . 5 8 4 Failed 84 | . 9 . 5 . . . . 1 5 . . . . 10 15 . . 11 9 . . . . 8 . . . 8 3 Catastrophic 13 | . 4 . . . . . . . 1 . . . . 2 2 . . 1 2 . . . . . . . . 1 . Database Lockouts 2 | . 1 . . . . . . . . . . . . . . . . . . . . . . 1 . . . . . Manual 100 | . 9 . 6 . 1 . 2 4 11 . . . . 3 23 1 . 6 10 . . . . 13 2 1 3 5 . Terminals 154 | . 16 . 10 . . . 2 8 17 . . . . 11 24 1 . 18 7 . . . 1 13 . . 5 14 7 Fabricators 21 | . . . . . . . . . . . . . . . . . . . 9 . . . . 7 5 . . . . Repair Stations 19 | . 10 . . . . . . . . . . . . 2 . . . . 7 . . . . . . . . . . Recycling Units 4 | . 2 . 1 . . . . . . . . . . . 1 . . . . . . . . . . . . . . Scanalyzers . | . . . . . . . . . . . . . . . . . . . . . . . . . . . . . . Garrison Access 7 | . . . . . . . . . . . . . . 2 . . . . . . . . . 3 . . . 2 . Terminal Hacks 108 | . 5 . 2 . 2 . 2 6 8 . . 25 . 2 8 1 . 7 1 . . 17 1 5 . . 5 7 4 Record 13 | . . . . . 1 . . . . . . 6 . . . . . . . . . 5 1 . . . . . . Part Schematic 21 | . 1 . . . . . . 1 . . . 9 . . 1 . . . . . . 4 . 2 . . 3 . . Robot Schematic 7 | . . . . . . . . . . . . 7 . . . . . . . . . . . . . . . . . Robot Analysis 6 | . 1 . . . . . . 1 . . . . . . . . . . . . . 4 . . . . . . . Prototype ID Bank 7 | . . . . . . . . . . . . 3 . . . . . . . . . 4 . . . . . . . Open Door 1 | . . . . . . . . . . . . . . . . 1 . . . . . . . . . . . . . Level Access Points 4 | . . . . . . . 1 . . . . . . . . . . 1 . . . . . . . . . 1 1 Branch Access Points 7 | . . . 1 . . . . . 1 . . . . 1 1 . . . 1 . . . . 1 . . 1 . . Machine Index 1 | . . . . . . . . . . . . . . . . . . 1 . . . . . . . . . . . Terminal Index 6 | . 1 . . . . . . 1 . . . . . 1 1 . . . . . . . . . . . . 1 1 Fabricator Index 2 | . . . . . . . . 1 . . . . . . . . . . . . . . . . . . . 1 . Repair Station Index 1 | . . . . . . . . . 1 . . . . . . . . . . . . . . . . . . . . Alert Level 3 | . . . . . . . . . 1 . . . . . 1 . . . . . . . . . . . . . 1 Unreport Threat 8 | . 2 . . . . . . . . . . . . . 4 . . . . . . . . 1 . . . . 1 Maintenance Status 2 | . . . . . . . . . . . . . . . . . . 1 . . . . . . . . . 1 . Security Status 1 | . . . . . . . . . 1 . . . . . . . . . . . . . . . . . . . . Patrol Status 1 | . . . . . . . . . 1 . . . . . . . . . . . . . . . . . . . . Transport Status 1 | . . . . . . . . . 1 . . . . . . . . . . . . . . . . . . . . Recall Reinforcements 3 | . . . . . . . . . 1 . . . . . . . . 1 . . . . . . . . . 1 . Hauler Manifests 4 | . . . 1 . . . . 1 1 . . . . . . . . 1 . . . . . . . . . . . Registered Prototypes 1 | . . . . . . . . 1 . . . . . . . . . . . . . . . . . . . . . Zone Layout 7 | . . . . . . . 1 . . . . . . . . . . 2 . . . . . 1 . . 1 2 . EX-Prototype ID Bank 1 | . . . . . 1 . . . . . . . . . . . . . . . . . . . . . . . . Fabricator Hacks 13 | . . . . . . . . . . . . . . . . . . . 5 . . . . 5 3 . . . . Load Schematic 4 | . . . . . . . . . . . . . . . . . . . 2 . . . . 1 1 . . . . Build 9 | . . . . . . . . . . . . . . . . . . . 3 . . . . 4 2 . . . . Repair Station Hacks 15 | . 10 . . . . . . . . . . . . 2 . . . . 3 . . . . . . . . . . Scan Component 8 | . 5 . . . . . . . . . . . . 1 . . . . 2 . . . . . . . . . . Repair 7 | . 5 . . . . . . . . . . . . 1 . . . . 1 . . . . . . . . . . Recycling Unit Hacks . | . . . . . . . . . . . . . . . . . . . . . . . . . . . . . . Scanalyzer . | . . . . . . . . . . . . . . . . . . . . . . . . . . . . . . Garrison Access Hacks 4 | . . . . . . . . . . . . . . 1 . . . . . . . . . 2 . . . 1 . Seal Access 4 | . . . . . . . . . . . . . . 1 . . . . . . . . . 2 . . . 1 . Unauthorized Hacks 23 | . 3 . 4 . . . . 1 4 . . . . . 2 . . . 5 . . . . 2 2 . . . . Terminals 13 | . 1 . 3 . . . . 1 4 . . . . . 2 . . . 2 . . . . . . . . . . Assimilate 4 | . . . 1 . . . . . 2 . . . . . 1 . . . . . . . . . . . . . . Botnet 4 | . . . 1 . . . . 1 1 . . . . . . . . . 1 . . . . . . . . . . Operators 5 | . 1 . 1 . . . . . 1 . . . . . 1 . . . 1 . . . . . . . . . . Fabricators 7 | . . . . . . . . . . . . . . . . . . . 3 . . . . 2 2 . . . . Report 1 | . . . . . . . . . . . . . . . . . . . 1 . . . . . . . . . . Prioritize 3 | . . . . . . . . . . . . . . . . . . . 1 . . . . 1 1 . . . . Siphon 3 | . . . . . . . . . . . . . . . . . . . 1 . . . . 1 1 . . . . Repair Stations . | . . . . . . . . . . . . . . . . . . . . . . . . . . . . . . Recycling Units 3 | . 2 . 1 . . . . . . . . . . . . . . . . . . . . . . . . . . Tunnel 3 | . 2 . 1 . . . . . . . . . . . . . . . . . . . . . . . . . . Scanalyzers . | . . . . . . . . . . . . . . . . . . . . . . . . . . . . . . Garrison Access . | . . . . . . . . . . . . . . . . . . . . . . . . . . . . . . Data Cores Recovered 2 | . . . 1 . . . . . . . . . . 1 . . . . . . . . . . . . . . . Used 2 | . . . 1 . . . . . . . . . . 1 . . . . . . . . . . . . . . . Hacking Detections 47 | . 5 . 2 . . . 2 3 4 . . . . 5 5 . . 5 3 . . . 1 4 1 . 1 4 2 Full Trace Events 8 | . 2 . 1 . . . . . 1 . . . . 1 . . . . 1 . . . . 1 . . . 1 . Feedback Events 1 | . . . . . . . . . . . . . . . . . . . . . . . . . . . . 1 . Hackware Fried 1 | . . . . . . . . . . . . . . . . . . . . . . . . . . . . 1 . Feedback Blocked . | . . . . . . . . . . . . . . . . . . . . . . . . . . . . . . Robot Schematics Acquired 7 | . . . . . . . . . . . . 7 . . . . . . . . . . . . . . . . . Robots Built . | . . . . . . . . . . . . . . . . . . . . . . . . . . . . . . Matter . | . . . . . . . . . . . . . . . . . . . . . . . . . . . . . . Time . | . . . . . . . . . . . . . . . . . . . . . . . . . . . . . . Total Robot Build Rating . | . . . . . . . . . . . . . . . . . . . . . . . . . . . . . . Part Schematics Acquired 21 | . 1 . . . . . . 1 . . . 9 . . 1 . . . . . . 4 . 2 . . 3 . . Parts Built 7 | . . . . . . . . . . . . . . . . . . . 2 . . . . 4 1 . . . . Matter 2219 | . . . . . . . . . . . . . . . . . . . 841 . . . . 952 426 . . . . Time 758 | . . . . . . . . . . . . . . . . . . . 320 . . . . 210 228 . . . . Total Part Build Rating 40 | . . . . . . . . . . . . . . . . . . . 11 . . . . 24 5 . . . . Parts Repaired 6 | . 5 . . . . . . . . . . . . 1 . . . . . . . . . . . . . . . Time 276 | . 130 . . . . . . . . . . . . 38 . . . . 108 . . . . . . . . . . Parts Recycled . | . . . . . . . . . . . . . . . . . . . . . . . . . . . . . . Recycled Matter . | . . . . . . . . . . . . . . . . . . . . . . . . . . . . . . Retrieved Matter . | . . . . . . . . . . . . . . . . . . . . . . . . . . . . . . Retrieved Components . | . . . . . . . . . . . . . . . . . . . . . . . . . . . . . . Parts Scanalyzed . | . . . . . . . . . . . . . . . . . . . . . . . . . . . . . . Part Schematics Acquired . | . . . . . . . . . . . . . . . . . . . . . . . . . . . . . . Parts Damaged . | . . . . . . . . . . . . . . . . . . . . . . . . . . . . . . Bothacking | -11 -10 -10 -9 -9 -9 -8 -8 -7 -6 -6 -6 -6 -5 -5 -5 -5 -5 -5 -4 -4 -4 -4 -3 -3 -3 -3 -2 -2 -2 ------------ Run | Scr Mat Min Mat Min Exi Min Mat Fac Fac Low Low Dat Pro Fac Ext Cet Arc Hub Fac Upp Upp Zhi Pro Res Arm Lab Res Qua Sec Used RIF Installer . | . . . . . . . . . . . . . . . . . . . . . . . . . . . . . . Robots Hacked . | . . . . . . . . . . . . . . . . . . . . . . . . . . . . . . Non-combat . | . . . . . . . . . . . . . . . . . . . . . . . . . . . . . . Combat . | . . . . . . . . . . . . . . . . . . . . . . . . . . . . . . Robot Hacks Applied . | . . . . . . . . . . . . . . . . . . . . . . . . . . . . . . Relay Couplers Released . | . . . . . . . . . . . . . . . . . . . . . . . . . . . . . . Robots Rewired 15 | . . . . . . . . . . . . . . . 15 . . . . . . . . . . . . . . Allies Hacked . | . . . . . . . . . . . . . . . . . . . . . . . . . . . . . . Hacks Repelled . | . . . . . . . . . . . . . . . . . . . . . . . . . . . . . . Allies | -11 -10 -10 -9 -9 -9 -8 -8 -7 -6 -6 -6 -6 -5 -5 -5 -5 -5 -5 -4 -4 -4 -4 -3 -3 -3 -3 -2 -2 -2 -------- Run | Scr Mat Min Mat Min Exi Min Mat Fac Fac Low Low Dat Pro Fac Ext Cet Arc Hub Fac Upp Upp Zhi Pro Res Arm Lab Res Qua Sec Total Allies 28 | . . 2 . . . . . . 2 . . . 1 . 18 5 . . . . . . . . . . . . . Largest Group 16 | . . 2 2 . . . . . 2 1 1 . 1 . 15 16 15 8 4 . . . . . . . . . . Highest-Rated Group 798 | . . 43 43 . . . . . 20 10 10 . 94 . 515 798 704 376 218 . . . . . . . . . . Highest-Rated Ally 156 | . . 31 31 . . . . . 10 10 10 . 94 . 156 156 156 94 94 . . . . . . . . . . Total Orders 2 | . . . . . . . . . 2 . . . . . . . . . . . . . . . . . . . . STAY 1 | . . . . . . . . . 1 . . . . . . . . . . . . . . . . . . . . FOLLOW 1 | . . . . . . . . . 1 . . . . . . . . . . . . . . . . . . . . Ally Attacks 221 | . . . 12 . . . . . . . . . 3 . 96 23 41 34 12 . . . . . . . . . . Total Damage 7042 | . . . 208 . . . . . . . . . 138 . 2825 712 1520 1139 500 . . . . . . . . . . Kills 40 | . . . 4 . . . . . . . . . . . 20 5 4 6 1 . . . . . . . . . . Allies Corrupted 1 | . . . . . . . . . 1 . . . . . . . . . . . . . . . . . . . . Allies Melted 1 | . . . . . . . . . . . . . 1 . . . . . . . . . . . . . . . . Intel | -11 -10 -10 -9 -9 -9 -8 -8 -7 -6 -6 -6 -6 -5 -5 -5 -5 -5 -5 -4 -4 -4 -4 -3 -3 -3 -3 -2 -2 -2 ------- Run | Scr Mat Min Mat Min Exi Min Mat Fac Fac Low Low Dat Pro Fac Ext Cet Arc Hub Fac Upp Upp Zhi Pro Res Arm Lab Res Qua Sec Robot Analysis Total 6 | . 1 . . . . . . 1 . . . . . . . . . . . . . 4 . . . . . . . Derelict Logs Recovered 7 | . . 1 . . . . . . . 1 2 . 1 . . . . . . 1 1 . . . . . . . . Drone Launches . | . . . . . . . . . . . . . . . . . . . . . . . . . . . . . . Drone Recoveries . | . . . . . . . . . . . . . . . . . . . . . . . . . . . . . . Exploration | -11 -10 -10 -9 -9 -9 -8 -8 -7 -6 -6 -6 -6 -5 -5 -5 -5 -5 -5 -4 -4 -4 -4 -3 -3 -3 -3 -2 -2 -2 ------------- Run | Scr Mat Min Mat Min Exi Min Mat Fac Fac Low Low Dat Pro Fac Ext Cet Arc Hub Fac Upp Upp Zhi Pro Res Arm Lab Res Qua Sec Turns Passed 11949 | 146 1187 1098 1027 383 491 198 66 106 350 130 185 1496 93 417 752 278 134 245 537 825 61 135 209 348 158 46 135 426 287 Spaces Moved 9956 | 70 491 587 407 198 267 82 146 262 575 299 260 80 274 871 847 132 109 281 867 153 207 213 269 471 174 101 283 774 206 Core 405 | 1 . . . . . . . . . . 3 . . . 126 . . . . . . . . . . . 2 67 206 Treads 2105 | 69 491 587 407 198 267 82 4 . . . . . . . . . . . . . . . . . . . . . . Legs . | . . . . . . . . . . . . . . . . . . . . . . . . . . . . . . Wheels . | . . . . . . . . . . . . . . . . . . . . . . . . . . . . . . Hover . | . . . . . . . . . . . . . . . . . . . . . . . . . . . . . . Flight 7446 | . . . . . . . 142 262 575 299 257 80 274 871 721 132 109 281 867 153 207 213 269 471 174 101 281 707 . Fastest Speed 16 | 50 160 180 160 180 160 160 30 30 30 29 29 32 32 29 27 30 30 27 24 26 26 26 26 16 22 22 22 22 50 Average Speed 60 | 158 167 180 170 180 177 176 34 30 30 29 33 32 32 32 40 30 30 27 26 26 26 26 26 20 23 22 23 32 50 Slowest Speed 250 | 160 180 180 220 180 180 200 200 30 30 30 150 32 32 175 150 30 30 30 107 26 26 26 26 109 112 24 250 150 50 Overloaded Moves . | . . . . . . . . . . . . . . . . . . . . . . . . . . . . . . Propulsion Burnouts . | . . . . . . . . . . . . . . . . . . . . . . . . . . . . . . Robots Hopped 72 | . . . . . . . 4 . 5 . 4 . 2 16 13 1 . 2 3 . . . 1 14 . . . 7 . Cave-ins Triggered . | . . . . . . . . . . . . . . . . . . . . . . . . . . . . . . Teleports 2 | . . . . . . . . . . . . . . . . . . . . . . . . . 1 . . 1 . Exploration Rate (%) 47 | 4 89 97 39 45 69 24 22 12 24 57 55 73 64 24 91 69 80 24 22 36 53 61 58 22 15 90 10 73 12 Regions Visited 29 Branch Regions 20 Pre-discovered Areas 8 | . 2 . 1 . 1 . . . . . . 1 . . . . . . . . . 3 . . . . . . . Known Exits Taken 24 | . . 1 1 . . . 1 1 1 1 1 1 1 1 1 1 1 1 1 1 1 1 1 1 1 1 1 1 . Unknown Exits Taken 5 | 1 1 . . 1 1 1 . . . . . . . . . . . . . . . . . . . . . . . Scrap Searched 10 | . . 2 . 1 . . . . . 1 2 . 1 . . . . . . 1 1 . 1 . . . . . . Spaces Dug 34 | . . . . . . . . . . . . . . 4 5 . . 4 4 . . . . 9 2 . 5 1 . Terrain Destroyed 299 | . 42 8 45 . 5 23 . . . . . . . 4 40 . . 4 12 . 17 . 37 48 2 . 5 7 . Melee 14 | . . . . . . . . . . . . . . 3 5 . . . 1 . . . . 1 2 . 1 1 . Projectile 21 | . . . . . . . . . . . . . . 1 . . . 4 3 . . . . 8 . . 4 1 . AOE 264 | . 42 8 45 . 5 23 . . . . . . . . 35 . . . 8 . 17 . 37 39 . . . 5 . Terrain Rammed . | . . . . . . . . . . . . . . . . . . . . . . . . . . . . . . Walls Destroyed . | . . . . . . . . . . . . . . . . . . . . . . . . . . . . . . Machines Disabled . | . . . . . . . . . . . . . . . . . . . . . . . . . . . . . . Actions | -11 -10 -10 -9 -9 -9 -8 -8 -7 -6 -6 -6 -6 -5 -5 -5 -5 -5 -5 -4 -4 -4 -4 -3 -3 -3 -3 -2 -2 -2 --------- Run | Scr Mat Min Mat Min Exi Min Mat Fac Fac Low Low Dat Pro Fac Ext Cet Arc Hub Fac Upp Upp Zhi Pro Res Arm Lab Res Qua Sec Total 15213 | 91 747 627 588 213 278 108 158 287 746 340 352 1549 275 975 1194 367 186 439 1142 937 211 277 404 686 283 119 342 903 389 Wait 4423 | . 166 34 55 3 . 4 . 20 171 36 96 1470 . 83 201 229 58 149 207 778 3 38 130 143 91 . 31 51 176 Move 9801 | 69 490 586 406 197 266 81 139 261 566 298 252 79 270 839 826 129 108 276 860 152 206 212 266 444 173 100 282 762 206 Hop 56 | . . . . . . . 2 . 4 . 3 . 1 15 7 1 . 2 3 . . . 1 13 . . . 4 . Pick Up 77 | 7 10 3 8 . 1 . 1 2 2 1 . . . 2 5 1 2 1 14 2 . 3 . 5 . . 1 5 1 Fast Attach 116 | 6 10 . 6 2 . . 2 . 1 . 1 . 3 17 8 1 . 1 6 . . 5 1 7 4 7 5 21 2 Attach 63 | . 1 . 5 . . 3 6 2 2 . . . 1 3 1 1 . . 8 1 . 2 . 9 4 2 5 7 . Detach 35 | . 1 . . 1 1 . . . . . . . . 3 1 . . . 2 . . . 2 8 3 4 5 4 . Swap 54 | . 2 1 16 . 1 1 1 2 . 2 . . . 1 10 2 1 4 3 2 . . . 5 . . . . . Drop 131 | 2 6 1 10 2 2 . 7 . . 3 . . . 7 14 2 2 1 14 2 . 7 1 13 4 4 5 20 2 Fire 243 | 7 61 1 77 5 7 19 . . . . . . . 1 10 . . 4 4 . 2 . 3 12 . . 7 23 . Melee 98 | . . . . . . . . . . . . . . 4 26 1 15 1 21 . . 10 . 7 4 2 1 6 . Ram 3 | . . . . . . . . . . . . . . . . . . . . . . . . 2 . . . . 1 Kick . | . . . . . . . . . . . . . . . . . . . . . . . . . . . . . . Crush 10 | . . 1 5 3 . . . . . . . . . . . . . . . . . . . . . . . . 1 Escape Stasis 18 | . . . . . . . . . . . . . . . . . . . . . . . . 18 . . . . . Rewire 85 | . . . . . . . . . . . . . . . 85 . . . . . . . . . . . . . . Trap . | . . . . . . . . . . . . . . . . . . . . . . . . . . . . . . Miscellaneous . | . . . . . . . . . . . . . . . . . . . . . . . . . . . . . . Route ------- -11/Scrapyard -10/Materials (discovered 4 exits: *Mat x3 / [*Min]) -10/Mines (discovered 2 exits: *Mat x2) -9/Materials (discovered 3 exits: *Mat / *Min / Sto) -9/Mines (discovered 3 exits: *Mat x2 / *Exi) -9/Exiles -8/Mines -8/Materials (discovered 3 exits: *Fac x3) -7/Factory -6/Factory (discovered 2 exits: *Low x2) -6/Lower Caves -6/Lower Caves -6/Data Miner -5/Proximity Caves -5/Factory (discovered 6 exits: Fac x2 / Upp x2 / *Ext x2) -5/Extension (discovered 2 exits: *Fac / *Cet) -5/Cetus -5/Archives (discovered 3 exits: *Fac / *Hub x2) -5/Hub_04(d) (discovered 4 exits: *Fac x4) -4/Factory (discovered 3 exits: *Res / *Upp x2) -4/Upper Caves -4/Upper Caves (discovered 2 exits: *Res / *Zhi) -4/Zhirov -3/Proximity Caves -3/Research (discovered 3 exits: *Arm / Tes x2) -3/Armory -3/Lab -2/Research (discovered 2 exits: *Qua x2) -2/Quarantine (discovered 2 exits: *Acc / *Sec) -2/Section 7 (discovered 1 exit: Acc) History --------- Turn | Location | Event 11 | -11/Scrapyard | Discovered new exit (range 15) 147 | -11/Scrapyard | Entered Materials 312 | -10/Materials | Build established: Mutant 533 | -10/Materials | Discovered new exit (range 16) 586 | -10/Materials | Discovered new exit (range 10) 665 | -10/Materials | Repaired Lgt. Treads 693 | -10/Materials | Repaired EM Pulse Gun 720 | -10/Materials | Repaired Lgt. Treads 748 | -10/Materials | Repaired Ion Engine 775 | -10/Materials | Repaired Grenade Launcher 976 | -10/Materials | Central database locked down 1123 | -10/Materials | Discovered new exit (range 4) 1314 | -10/Materials | Discovered new exit (range 6) 1334 | -10/Materials | Entered Mines 1335 | -10/Mines | Assembled infested the area 1340 | -10/Mines | Assisted by a Guerilla fighting off Assembled 1478 | -10/Mines | Identified exit to Materials 1634 | -10/Mines | Discovered exit to Materials (range 8) 2432 | -10/Mines | Entered Materials 2432 | -9/Materials | Accompanied by 2 allies 2432 | -9/Materials | Evolved 2 slots: Propulsion x1, Utility x1 2437 | -9/Materials | Led the pair of lost Derelicts to an unsafe place 2828 | -9/Materials | Discovered new exit (range 5) 2987 | -9/Materials | Build established: Scavenger-Mutant 3162 | -9/Materials | Identified exit to Mines 3162 | -9/Materials | Identified exit to Storage 3459 | -9/Materials | Entered Mines 3644 | -9/Mines | Discovered new exit (range 10) 3669 | -9/Mines | Found a damaged Exp. Sensor Array with a note attached 3673 | -9/Mines | Found Prototype Device 3673 | -9/Mines | Identified Exp. Sensor Array 3747 | -9/Mines | Discovered new exit (range 9) 3835 | -9/Mines | Deemed a non-threat by the Exiles lab entrance 3835 | -9/Mines | Discovered new exit (range 5) 3842 | -9/Mines | Entered Exiles 3891 | -9/Exiles | Met 8R-AWN 3916 | -9/Exiles | Met EX-HEX 4014 | -9/Exiles | Met EX-DEC 4046 | -9/Exiles | Learned location of Zion (-7) 4082 | -9/Exiles | Met EX-BIN 4108 | -9/Exiles | Aligned with FarCom system 4109 | -9/Exiles | Given EX-Vault access code 4151 | -9/Exiles | Opened EX-Vault 4190 | -9/Exiles | Warned to stay clear of 0b10 Research branches 4293 | -9/Exiles | Attacked by the Exiles 4320 | -9/Exiles | Discovered new exit (range 10) 4333 | -9/Exiles | Entered Mines 4373 | -8/Mines | CL-ANK came to Exiles' defense 4478 | -8/Mines | Lost 6 parts (2n1u3w) 4510 | -8/Mines | Discovered new exit (range 11) 4522 | -8/Mines | Core integrity fell below 50% 4531 | -8/Mines | Entered Materials 4531 | -8/Materials | Evolved 2 slots: Utility x2 4583 | -8/Materials | Identified exit to Factory 4597 | -8/Materials | Entered Factory 4597 | -7/Factory | Evolved 2 slots: Utility x2 4692 | -7/Factory | Discovered new exit (range 12) 4695 | -7/Factory | Identified exit to Factory 4703 | -7/Factory | Entered another Factory area 4703 | -6/Factory | Evolved 2 slots: Utility x2 4754 | -6/Factory | Identified exit to Lower Caves 4890 | -6/Factory | Build established: Hacker-Scout 5053 | -6/Factory | Entered Lower Caves 5053 | -6/Lower Caves | Accompanied by 1 ally 5069 | -6/Lower Caves | Encountered a Warlord checkpoint 5072 | -6/Lower Caves | Learned location of 1 exit from Factory 5156 | -6/Lower Caves | Discovered new exit (range 17) 5179 | -6/Lower Caves | Identified exit to Lower Caves 5183 | -6/Lower Caves | Entered another Lower Caves area 5183 | -6/Lower Caves | Accompanied by 1 ally 5344 | -6/Lower Caves | Learned 8 Factory zone layouts 5363 | -6/Lower Caves | Discovered new exit (range 17) 5367 | -6/Lower Caves | Identified exit to Data Miner 5368 | -6/Lower Caves | Entered Data Miner 5368 | -6/Data Miner | Discovered new exit (range 6) 5373 | -6/Data Miner | Met Data Miner 5381 | -6/Data Miner | Learned location of Section 7 (-2) 5381 | -6/Data Miner | Acquired the access code to Warlord's prototype stash 5629 | -6/Data Miner | Build established: Hacker-Sprinter 6757 | -6/Data Miner | Received God Mode back door access code from Data Miner 6863 | -6/Data Miner | Identified exit to Proximity Caves 6864 | -6/Data Miner | Entered Proximity Caves 6872 | -5/Proximity Caves | Escorted by Enhanced Grunt 6905 | -5/Proximity Caves | Spotted B-75 Beast 6918 | -5/Proximity Caves | Lost 3 parts (2n1u) 6927 | -5/Proximity Caves | Learned Factory emergency access door positions 6947 | -5/Proximity Caves | Discovered new exit (range 13) 6951 | -5/Proximity Caves | Identified exit to Factory 6957 | -5/Proximity Caves | Entered Factory 6957 | -5/Factory | Evolved 2 slots: Power x1, Propulsion x1 6958 | -5/Factory | Identified exit to Upper Caves 6959 | -5/Factory | Identified exit to Factory 7230 | -5/Factory | Identified exit to Extension 7285 | -5/Factory | Repaired Adv. Weight Redist. System 7349 | -5/Factory | Found Prototype Processor 7349 | -5/Factory | Identified Exp. Signal Interpreter 7366 | -5/Factory | Incoming investigation squad redirected 7374 | -5/Factory | Entered Extension 7429 | -5/Extension | Rescued A7 7505 | -5/Extension | Spotted B-75 Beast 7506 | -5/Extension | Rescued a captive Derelict 7794 | -5/Extension | Allies destroyed B-75 Beast 7794 | -5/Extension | Spotted B-75 Beast 7799 | -5/Extension | Disrupted transfer network 7802 | -5/Extension | Destroyed B-75 Beast 7841 | -5/Extension | Rescued a captive Derelict 8011 | -5/Extension | Rescued a captive Derelict 8011 | -5/Extension | Rescued a captive Derelict 8017 | -5/Extension | Identified exit to Cetus 8055 | -5/Extension | Discovered exit to Factory (range 10) 8126 | -5/Extension | Entered Cetus 8126 | -5/Cetus | Accompanied by 15 allies (A7) 8131 | -5/Cetus | Acquired a Cetus Manufacturing Module code from A7 8139 | -5/Cetus | Spotted Cetus Guard 8141 | -5/Cetus | Spotted Cetus Guard 8142 | -5/Cetus | Spotted Cetus Guard 8145 | -5/Cetus | Spotted Cetus Guard 8160 | -5/Cetus | Allies destroyed Cetus Guard 8162 | -5/Cetus | Allies destroyed Cetus Guard 8163 | -5/Cetus | Allies destroyed Cetus Guard 8190 | -5/Cetus | Escorted A7 to Cetus Mainframe 8202 | -5/Cetus | Started Cetus Manufacturing Module 8212 | -5/Cetus | Discovered new exit (range 22) 8218 | -5/Cetus | Identified exit to Archives 8227 | -5/Cetus | Manufactured an Enhanced Grunt 8252 | -5/Cetus | Manufactured an Enhanced Grunt 8277 | -5/Cetus | Manufactured an Enhanced Grunt 8302 | -5/Cetus | Manufactured an Enhanced Grunt 8327 | -5/Cetus | Manufactured an Enhanced Grunt 8404 | -5/Cetus | Entered Archives 8404 | -5/Archives | Accompanied by 15 allies (A7) 8409 | -5/Archives | Received a hacking code to weaken MAIN.C 8419 | -5/Archives | Build established: Commander-Sprinter 8444 | -5/Archives | Discovered new exit (range 22) 8456 | -5/Archives | Discovered exit to Factory (range 14) 8483 | -5/Archives | Discovered new exit (range 14) 8497 | -5/Archives | Identified exit to Hub_04(d) 8538 | -5/Archives | Entered Hub_04(d) 8538 | -5/Hub_04(d) | Accompanied by 8 allies 8672 | -5/Hub_04(d) | Found Powered Armor 8783 | -5/Hub_04(d) | Entered Factory 8783 | -4/Factory | Accompanied by 4 allies 8783 | -4/Factory | Evolved 2 slots: Utility x2 8845 | -4/Factory | Discovered new exit (range 8) 8847 | -4/Factory | Identified exit to Research 9005 | -4/Factory | Fabricated Exp. Terrain Scanner? 9054 | -4/Factory | Build established: Hacker-Sprinter 9110 | -4/Factory | Fabricated Exp. Cesium-ion Thruster? 9196 | -4/Factory | Identified exit to Upper Caves 9320 | -4/Factory | Entered Upper Caves 9489 | -4/Upper Caves | Build established: Hacker-Scout 10051 | -4/Upper Caves | Learned Research emergency access door positions 10096 | -4/Upper Caves | Discovered new exit (range 16) 10141 | -4/Upper Caves | Identified exit to Upper Caves 10145 | -4/Upper Caves | Entered another Upper Caves area 10155 | -4/Upper Caves | Discovered exit to Research (range 12) 10189 | -4/Upper Caves | Encountered a Warlord checkpoint 10197 | -4/Upper Caves | Learned Research emergency access door positions 10202 | -4/Upper Caves | Discovered new exit (range 17) 10206 | -4/Upper Caves | Identified exit to Zhirov 10206 | -4/Upper Caves | Entered Zhirov 10206 | -4/Zhirov | Discovered new exit (range 3) 10207 | -4/Zhirov | Identified exit to Proximity Caves 10211 | -4/Zhirov | Met Zhirov 10217 | -4/Zhirov | Learned location of Quarantine (-2) 10217 | -4/Zhirov | Learned location of Testing (-3) 10217 | -4/Zhirov | Learned location of Command (-1) 10218 | -4/Zhirov | Zhirov requested help retrieving the SGEMP Prototype 10223 | -4/Zhirov | Found Alien Artifact 10223 | -4/Zhirov | Identified Integrated Reactor 10223 | -4/Zhirov | Installed Integrated Reactor, increased core energy generation (+10) 10319 | -4/Zhirov | Found Alien Artifact 10341 | -4/Zhirov | Entered Proximity Caves 10537 | -3/Proximity Caves | Discovered exit to Research (range 24) 10550 | -3/Proximity Caves | Entered Research 10550 | -3/Research | Evolved 2 slots: Weapon x2 10557 | -3/Research | Found Enh. Force Lance 10622 | -3/Research | Fabricated Exp. Cesium-ion Thruster (x1) 10666 | -3/Research | Fabricated Exp. Cesium-ion Thruster (x1) 10709 | -3/Research | Fabricated Exp. Cesium-ion Thruster (x1) 10754 | -3/Research | Fabricated Exp. Cesium-ion Thruster? 10809 | -3/Research | Identified exit to Armory 10809 | -3/Research | Identified exit to Testing 10826 | -3/Research | Central database locked down 10850 | -3/Research | Lost 6 parts (2n3u1w) 10898 | -3/Research | Entered Armory 10949 | -3/Armory | Identified Transdimensional Reconstructor 10949 | -3/Armory | Warped through subspace to slip node 10949 | -3/Armory | Discovered new exit (range 1) 10949 | -3/Armory | Identified exit to Lab 11032 | -3/Armory | Fabricated Biomechanical Wings (x1) 11056 | -3/Armory | Entered Lab 11056 | -3/Lab | Discovered new exit (range 9) 11058 | -3/Lab | Identified exit to Research 11059 | -3/Lab | Unable to decrypt terminal 11059 | -3/Lab | Opened the door to a hidden lab 11060 | -3/Lab | Gained access to the hidden lab's interior 11061 | -3/Lab | Detected by scanners 11068 | -3/Lab | Found Alien Artifact 11068 | -3/Lab | Identified Integrated Dissipator 11068 | -3/Lab | Installed Integrated Dissipator, increased core heat dissipation (+20) 11070 | -3/Lab | Confronted by A5 11075 | -3/Lab | Found Alien Artifact 11075 | -3/Lab | Identified Core Expander 11075 | -3/Lab | Installed Core Expander, added new Propulsion slot 11080 | -3/Lab | Found Prototype Hackware 11080 | -3/Lab | Identified Deep Network Scanner 11083 | -3/Lab | Found Prototype Energy Cannon 11083 | -3/Lab | Identified Potential Cannon 11086 | -3/Lab | Found Prototype Protection 11086 | -3/Lab | Identified Exp. Powered Armor 11090 | -3/Lab | Found Prototype Energy Cannon 11090 | -3/Lab | Identified Warp Cannon 11097 | -3/Lab | Found Alien Artifact 11097 | -3/Lab | Identified Core Reset Matrix 11097 | -3/Lab | Used Core Reset Matrix 11100 | -3/Lab | Discovered exit to Research (range 6) 11101 | -3/Lab | Sensed 1 artifact in vicinity 11102 | -3/Lab | Entered Research 11102 | -2/Research | Evolved 2 slots: Propulsion x1, Utility x1 11130 | -2/Research | Identified exit to Quarantine 11237 | -2/Research | Entered Quarantine 11238 | -2/Quarantine | Detected hypermatrix surge 11238 | -2/Quarantine | Sensed 15 artifacts in vicinity 11239 | -2/Quarantine | Cryocooling Duct disabled 11254 | -2/Quarantine | Ambient heat levels rising (+20) 11254 | -2/Quarantine | Non-combat units ordered to evacuate 11258 | -2/Quarantine | Found Stasis Generator 11291 | -2/Quarantine | Found Subatomic Replicator 11299 | -2/Quarantine | Found Phase Armor 11322 | -2/Quarantine | Identified exit to Access 11322 | -2/Quarantine | Adv. Hacking Suite fried by hacking feedback 11349 | -2/Quarantine | Intercept squad dispatched 11370 | -2/Quarantine | Spotted Tracker 11380 | -2/Quarantine | Destroyed Tracker 11381 | -2/Quarantine | Spotted Tracker 11392 | -2/Quarantine | Destroyed Tracker 11421 | -2/Quarantine | Spotted Combat Programmer 11431 | -2/Quarantine | Destroyed Combat Programmer 11444 | -2/Quarantine | Spotted Combat Programmer 11489 | -2/Quarantine | System corruption reached 10% 11510 | -2/Quarantine | Found Hpw. Transdimensional Reconstructor 11512 | -2/Quarantine | Found Hpw. Transdimensional Reconstructor 11512 | -2/Quarantine | Warped through subspace 11527 | -2/Quarantine | Found Prototype Launcher 11527 | -2/Quarantine | Identified Gui. Micro-nuke Launcher 11587 | -2/Quarantine | Found Core Reset Matrix 11589 | -2/Quarantine | Sensed 10 artifacts in vicinity 11592 | -2/Quarantine | Discovered exit to Access (range 22) 11611 | -2/Quarantine | Spotted Fortress 11637 | -2/Quarantine | Core integrity fell below 50% 11661 | -2/Quarantine | Discovered new exit (range 5) 11662 | -2/Quarantine | Identified exit to Section 7 11663 | -2/Quarantine | Entered Section 7 11664 | -2/Section 7 | Sensed 24 artifacts in vicinity 11667 | -2/Section 7 | Lost 8 parts (4n3u1w) 11894 | -2/Section 7 | Build established: Hacker-Mutant 11950 | -2/Section 7 | Self-destructed Last Messages --------------- Current Alert Level: Low Security 11717_ Acquired Unknown Treads. 11717_ Identified Adv. Heavy Treads. 11721_ Dropped Hpw. Transdimensional Reconstructor. 11771_ System corrupted: Matter fused (-7). 11787_ System corrupted: Matter fused (-9). 11818_ System corrupted: Component data lost. 11877_ Acquired Hpw. Transdimensional Reconstructor. 11924_ Connecting with Terminal... >>Index(Terminals) Found 19 terminals. Downloaded coordinate data. 11934_ O-32 Director: "IFF HANDSHAKE FAILED. SECURING TERMINAL." 11938_ ALERT: Hostiles spotted, dispatching reinforcements to Terminal 7019. 11939_ Slammed into K-01 Serf. 11945_ System corrupted: Matter fused (-9). [Achievement: 5k Club] [Achievement: 10k Club] [Achievement: 20k Club] Map ----- +----------------------------------------------------+ | """ ## #?# #???# #???????????????????????? | | ## #?########???# #?#######+####??????????? | | ###### #????????????# ## #?????????? | | ?????# #????????????# / #?????????? | | ?????# #????????????# ## #?????????? | | ?????# #????????????# #? +?????????? | | ?????? #????????????# #?? #?????????? | | ?????? #????????????# ####?? #?????????? | | ?????? ?????????????# #?????? #?????????? | | ?????? ?????????????# #?????? #?????????? | | ?????? ?????????????# #??????? #?????????? | | ??????#?????????????# #??????? ??????????? | | ????????????????????# #???????? ??????????? | | ????????????????????# #???????? ???????????? | | ??????????? ???????# #???############???????????? | | ???????????? ??????# #?? = ????????????? | | ????????????? ?????# #? ???????????? | | ???????????#+#/###### ## ???????????? | | ???????????# / ???????????? | | ???????????# # ???????????? | | ???????????# #? ???????????? | | ???????????# #?? ????????????? | | ???????????####+### #???? ????????????? | | ??????????????????# #????? ?????????????? | | ??????????????????# #####+#######?????????????? | | ??????????????????# u @ w ????????? | | ??????????????????# g ????????? | | ??????????????????# """ """ ""??????????? | | ??????????????????# """ " "?????????????? | | ??????????????????######## """ ????????????????? | | ?????????????????????????? ????????????????? | | ?????????????????????????? """ "???????????????? | | ?????????????????????????? """ "???????????????? | | ?????????????????????????? """ "???????????????? | | ?????????????????????????? ?????????????????? | | ?????????????????????????? """?????????????????? | | ?????????????????????????? ""??????????????????? | | ??????????????????????????? "???????????????????? | | ??????????????????????????? ???????????????????? | | ??????????????????????????? "???????????????????? | | ??????????????????????????? ????????????????????!? | | ?????????????????????????????????????????????????? | | ?????????????????????????????????????????????????? | | ?????????????????????????????????????????????????? | | ?????????????????????????????????????????????????? | | ?????????????????????????????????????????????????? | | ?????????????????????????????????????????????????? | | ?????????????????????????????????????????????????? | | ?????????????????????????????????????????????????? | | ?????????????????????????????????????????????????? | +----------------------------------------------------+ Best States ------------- Heat Dissipation 136 Energy Generation 41 Energy Capacity 1150 Matter Stores 525 Matter Capacity 600 Sight Range 22 Robot Scan Range 30 Terrain Scan Range 30 Terrain Scan Density 210 Cloak Strength 3 Power Amplification 20 Additional Mass Support 21 Armor Coverage 450 Resistance: EM 25 Propulsion Shielding 66 Evasion (%) 74 Recoil Reduction 3 Offensive Hacking 65 Defensive Hacking 24 Item Schematics ----------------- None Robot Schematics ------------------ None Fabricated ------------ Exp. Terrain Scanner | x1 | -4/Factory Exp. Cesium-ion Thruster | x1 | -4/Factory Exp. Cesium-ion Thruster | x1 | -3/Research Exp. Cesium-ion Thruster | x1 | -3/Research Exp. Cesium-ion Thruster | x1 | -3/Research Exp. Cesium-ion Thruster | x1 | -3/Research Biomechanical Wings | x1 | -3/Armory Alien Tech Used ----------------- Integrated Reactor Transdimensional Reconstructor Integrated Dissipator Core Expander Core Reset Matrix Stasis Generator High-powered Transdimensional Reconstructor Phase Armor Achievements -------------- 10k Club 20k Club 5k Club A New Friend Adventurer Alien Roots Alien Tech Anyone Home? Armchair Analyst Backstab Brute Force Can't Catch Me Crack Shot Cya! Dangerous Findings Dynamic Key Everything Is Under Control Explorer GoHome() Hey, That's Mine! I Spy I Survived The Infestation I'm Back, Baby! It's Just You Just What I Needed Knowing Is Half The Battle Let's See Who's Tougher Librarian Loot Pinata Made in Tau Ceti IV Main Advantage Max Potential Nope Novice Programmer Omniscient Cartographer One Hack Too Far Ooh, Shiny! Part-time Mechanic Prison Break Project G-00 Prolific Hacker Quick And Dirty Remodeling Respectable Loadout Risk Taker Rockin' Loadout Serviceable Loadout Shopping List Storm Trooper Subspace Traveler System Compromised The More The Merrier The Oracle The Science Guy Tourist True Hacker Uninvited Guest Watch This! root@ Challenges ------------ None Game ------ Seed BladeTiamatProjector Manual? 0 Play Time 02:30:50 Cumulative 4.9 hours Start 2021.08.12 @ 22:10:45 End 2021.08.15 @ 00:17:27 Sessions 7 Manual Loads 0 Difficulty Rogue Special Mode None Game No. 1 Rogue 1 Adventurer 0 Explorer 0 Win Type - Total 0 Types 0/0/0/0/0/0/0/0/0 Lore% 4 Gallery% 10 Achievement% 23 Wizard Run 0 Options --------- ASCII 0 Keyboard 0 Movement Numpad Keybinds 0 Fullscreen 2 Font 18/TerminusBold Map View 76x50 Tactical HUD 1 Map Filters NONE Filters NONE Steam 0 RUN: a546def5-dd4f-4d96-a244-5b136be0c570